Workbook

Sheet Бумага по цеху
B2: Бумага для плоттеров 70 г/м | C2: Хомич | D2: Булавский | E2: Буйко | F2: Сандульская | H2: Бумага для плоттеров 80 г/м | I2: Хомич | J2: Булавский | K2: Буйко | L2: Сандульская | N2: Бумага для плоттеров 100 г/м | O2: Хомич | P2: Булавский | Q2: Буйко | R2: Сандульская | T2: Бумага для плоттеров 110 г/м | U2: Хомич | V2: Булавский | W2: Буйко | X2: Сандульская | AA2: Хомич | AB2: Булавский | AC2: Буйко | AD2: Сандульская
B3: 1 | C3: 1.129 | D3: 0.339 | H3: 1 | I3: 0.26 | N3: 1 | O3: 5
B4: 2 | D4: 0.603 | H4: 23 | K4: 0.26 | N4: 23
B5: 7 | D5: 0.585 | H5: 24 | L5: 0.411 | N5: 24
B6: 15 | E6: 0.727
B7: 16 | E7: 1.639
B8: 17 | E8: 0.919
B9: 18 | C9: 0.194
B10: 19 | C10: 0.525
B11: 21 | D11: 0.994
B12: 22 | C12: 0.896
B13: 23 | E13: 0.751 | F13: 0.872
B14: 24 | C14: 2.829 | E14: 0.633
B23: ИТОГО | C23: =SUM(C3:C22) -> 5.573 | D23: =SUM(D3:D22) -> 2.521 | E23: =SUM(E3:E22) -> 4.669 | F23: =SUM(F3:F22) -> 0.872 | H23: ИТОГО | I23: =SUM(I3:I22) -> 0.26 | J23: =SUM(J3:J22) -> 0 | K23: =SUM(K3:K22) -> 0.26 | L23: =SUM(L3:L22) -> 0.411 | N23: ИТОГО | O23: =SUM(O3:O22) -> 5 | P23: =SUM(P3:P22) -> 0 | Q23: =SUM(Q3:Q22) -> 0 | R23: =SUM(R3:R22) -> 0 | T23: ИТОГО | U23: =SUM(U3:U22) -> 0 | V23: =SUM(V3:V22) -> 0 | W23: =SUM(W3:W22) -> 0 | X23: =SUM(X3:X22) -> 0 | Z23: ИТОГО | AA23: =SUM(AA3:AA22) -> 0 | AB23: =SUM(AB3:AB22) -> 0 | AC23: =SUM(AC3:AC22) -> 0 | AD23: =SUM(AD3:AD22) -> 0
B25: Бумага для изгот потр.товаров 60 г/м | C25: Хомич | D25: Булавский | E25: Буйко | F25: Сандульская | H25: Бумага для изгот потр.товаров 70 г/м | I25: Хомич | J25: Булавский | K25: Буйко | L25: Сандульская | N25: Бумага для изгот потр.товаров 80 г/м | O25: Хомич | P25: Булавский | Q25: Буйко | R25: Сандульская | U25: Хомич | V25: Булавский | W25: Буйко | X25: Сандульская | AA25: Хомич | AB25: Булавский | AC25: Буйко | AD25: Сандульская
B26: 14 | E26: 4.997
B27: 15 | E27: 13.769 | F27: 16.76
B28: 16 | C28: 8.264 | D28: 3.501
B29: 17 | C29: 2.558 | D29: 11.144
B38: ИТОГО | C38: =SUM(C26:C37) -> 10.822 | D38: =SUM(D26:D37) -> 14.645 | E38: =SUM(E26:E37) -> 18.766 | F38: =SUM(F26:F37) -> 16.76 | H38: ИТОГО | I38: =SUM(I26:I37) -> 0 | J38: =SUM(J26:J37) -> 0 | K38: =SUM(K26:K37) -> 0 | L38: =SUM(L26:L37) -> 0 | N38: ИТОГО | O38: =SUM(O26:O37) -> 0 | P38: =SUM(P26:P37) -> 0 | Q38: =SUM(Q26:Q37) -> 0 | R38: =SUM(R26:R37) -> 0 | T38: ИТОГО | U38: =SUM(U26:U37) -> 0 | V38: =SUM(V26:V37) -> 0 | W38: =SUM(W26:W37) -> 0 | X38: =SUM(X26:X37) -> 0 | Z38: ИТОГО | AA38: =SUM(AA26:AA37) -> 0 | AB38: =SUM(AB26:AB37) -> 0 | AC38: =SUM(AC26:AC37) -> 0 | AD38: =SUM(AD26:AD37) -> 0
B40: Бумага писчая 65 г/м | C40: Хомич | D40: Булавский | E40: Буйко | F40: Сандульская | H40: Бумага писчая 70 г/м | I40: Хомич | J40: Булавский | K40: Буйко | L40: Сандульская | N40: Бумага писчая 65 г/м (с пов. проклейкой) | O40: Хомич | P40: Булавский | Q40: Буйко | R40: Сандульская | T40: Бумага писчая 70 г/м (с пов. проклейкой) | U40: Хомич | V40: Булавский | W40: Буйко | X40: Сандульская | AA40: Хомич | AB40: Булавский | AC40: Буйко | AD40: Сандульская
B52: ИТОГО | C52: =SUM(C41:C51) -> 0 | D52: =SUM(D41:D51) -> 0 | E52: =SUM(E41:E51) -> 0 | F52: =SUM(F41:F51) -> 0 | H52: ИТОГО | I52: =SUM(I41:I51) -> 0 | J52: =SUM(J41:J51) -> 0 | K52: =SUM(K41:K51) -> 0 | L52: =SUM(L41:L51) -> 0 | N52: ИТОГО | O52: =SUM(O41:O51) -> 0 | P52: =SUM(P41:P51) -> 0 | Q52: =SUM(Q41:Q51) -> 0 | R52: =SUM(R41:R51) -> 0 | T52: ИТОГО | U52: =SUM(U41:U51) -> 0 | V52: =SUM(V41:V51) -> 0 | W52: =SUM(W41:W51) -> 0 | X52: =SUM(X41:X51) -> 0 | Z52: ИТОГО | AA52: =SUM(AA41:AA51) -> 0 | AB52: =SUM(AB41:AB51) -> 0 | AC52: =SUM(AC41:AC51) -> 0 | AD52: =SUM(AD41:AD51) -> 0
B54: Бумага для печати 55 г/м | C54: Хомич | D54: Булавский | E54: Буйко | F54: Сандульская | H54: Бумага для печати 60 г/м | I54: Хомич | J54: Булавский | K54: Буйко | L54: Сандульская | N54: Бумага для печати 65 г/м | O54: Хомич | P54: Булавский | Q54: Буйко | R54: Сандульская | T54: Бумага для печати 70 г/м | U54: Хомич | V54: Булавский | W54: Буйко | X54: Сандульская | Z54: Бумага для печати 80 г/м | AA54: Хомич | AB54: Булавский | AC54: Буйко | AD54: Сандульская | AF54: Бумага для печати 80 г/м (с пов.проклейкой) | AG54: Хомич | AH54: Булавский | AI54: Буйко | AJ54: Сандульская | AL54: Бумага для печати 120 г/м | AM54: Хомич | AN54: Булавский | AO54: Буйко | AP54: Сандульская
B55: 20 | D55: 6.684 | T55: 19 | X55: 1.253 | Z55: 18 | AC55: 14.037
B56: 21 | C56: 13.936 | D56: 11.654 | T56: 20 | U56: 14.529 | V56: 0.322 | Z56: 19 | AD56: 7.721
B57: 22 | F57: 4.093
B64: ИТОГО | C64: =SUM(C55:C63) -> 13.936 | D64: =SUM(D55:D63) -> 18.338 | E64: =SUM(E55:E63) -> 0 | F64: =SUM(F55:F63) -> 4.093 | H64: ИТОГО | I64: =SUM(I55:I63) -> 0 | J64: =SUM(J55:J63) -> 0 | K64: =SUM(K55:K63) -> 0 | L64: =SUM(L55:L63) -> 0 | N64: ИТОГО | O64: =SUM(O55:O63) -> 0 | P64: =SUM(P55:P63) -> 0 | Q64: =SUM(Q55:Q63) -> 0 | R64: =SUM(R55:R63) -> 0 | T64: ИТОГО | U64: =SUM(U55:U63) -> 14.529 | V64: =SUM(V55:V63) -> 0.322 | W64: =SUM(W55:W63) -> 0 | X64: =SUM(X55:X63) -> 1.253 | Z64: ИТОГО | AA64: =SUM(AA55:AA63) -> 0 | AB64: =SUM(AB55:AB63) -> 0 | AC64: =SUM(AC55:AC63) -> 14.037 | AD64: =SUM(AD55:AD63) -> 7.721 | AF64: ИТОГО | AG64: =SUM(AG55:AG63) -> 0 | AH64: =SUM(AH55:AH63) -> 0 | AI64: =SUM(AI55:AI63) -> 0 | AJ64: =SUM(AJ55:AJ63) -> 0 | AL64: ИТОГО | AM64: =SUM(AM55:AM63) -> 0 | AN64: =SUM(AN55:AN63) -> 0 | AO64: =SUM(AO55:AO63) -> 0 | AP64: =SUM(AP55:AP63) -> 0
B66: Бумага бланочно-этикеточная 50 г/м | C66: Хомич | D66: Булавский | E66: Буйко | F66: Сандульская | H66: Бумага бланочно-этикеточная 55 г/м | I66: Хомич | J66: Булавский | K66: Буйко | L66: Сандульская | N66: Бумага бланочно-этикеточная 60 г/м | O66: Хомич | P66: Булавский | Q66: Буйко | R66: Сандульская | T66: Бумага бланочно-этикеточная 70 г/м | U66: Хомич | V66: Булавский | W66: Буйко | X66: Сандульская | Z66: Бумага бланочно-этикеточная 80 г/м | AA66: Хомич | AB66: Булавский | AC66: Буйко | AD66: Сандульская | AG66: Хомич | AH66: Булавский | AI66: Буйко | AJ66: Сандульская | AM66: Хомич | AN66: Булавский | AO66: Буйко | AP66: Сандульская
H67: 14 | K67: 4.104 | L67: 2.357
B77: ИТОГО | C77: =SUM(C67:C76) -> 0 | D77: =SUM(D67:D76) -> 0 | E77: =SUM(E67:E76) -> 0 | F77: =SUM(F67:F76) -> 0 | H77: ИТОГО | I77: =SUM(I67:I76) -> 0 | J77: =SUM(J67:J76) -> 0 | K77: =SUM(K67:K76) -> 4.104 | L77: =SUM(L67:L76) -> 2.357 | N77: ИТОГО | O77: =SUM(O67:O76) -> 0 | P77: =SUM(P67:P76) -> 0 | Q77: =SUM(Q67:Q76) -> 0 | R77: =SUM(R67:R76) -> 0 | T77: ИТОГО | U77: =SUM(U67:U76) -> 0 | V77: =SUM(V67:V76) -> 0 | W77: =SUM(W67:W76) -> 0 | X77: =SUM(X67:X76) -> 0 | Z77: ИТОГО | AA77: =SUM(AA67:AA76) -> 0 | AB77: =SUM(AB67:AB76) -> 0 | AC77: =SUM(AC67:AC76) -> 0 | AD77: =SUM(AD67:AD76) -> 0 | AF77: ИТОГО | AG77: =SUM(AG67:AG76) -> 0 | AH77: =SUM(AH67:AH76) -> 0 | AI77: =SUM(AI67:AI76) -> 0 | AJ77: =SUM(AJ67:AJ76) -> 0 | AL77: ИТОГО | AM77: =SUM(AM67:AM76) -> 0 | AN77: =SUM(AN67:AN76) -> 0 | AO77: =SUM(AO67:AO76) -> 0 | AP77: =SUM(AP67:AP76) -> 0
B79: Бумага для изгот.конвертов 60 г/м | C79: Хомич | D79: Булавский | E79: Буйко | F79: Сандульская | H79: Бумага для изгот.конвертов 70 г/м | I79: Хомич | J79: Булавский | K79: Буйко | L79: Сандульская | N79: Бумага для изгот.конвертов 70 г/м (с пов.проклейкой) | O79: Хомич | P79: Булавский | Q79: Буйко | R79: Сандульская | T79: Бумага для изгот.конвертов 80 г/м | U79: Хомич | V79: Булавский | W79: Буйко | X79: Сандульская | Z79: Бумага для изгот.конвертов 80 г/м (с пов.проклейкой) | AA79: Хомич | AB79: Булавский | AC79: Буйко | AD79: Сандульская | AF79: Бумага для изгот.конвертов 90 г/м | AG79: Хомич | AH79: Булавский | AI79: Буйко | AJ79: Сандульская | AL79: Бумага для изгот.конвертов 100 г/м | AM79: Хомич | AN79: Булавский | AO79: Буйко | AP79: Сандульская | AR79: Бумага для изгот.конвертов 100 г/м (с пов.проклейкой) | AS79: Хомич | AT79: Булавский | AU79: Буйко | AV79: Сандульская | AX79: Бумага для изгот.конвертов 110 г/м | AY79: Хомич | AZ79: Булавский | BA79: Буйко | BB79: Сандульская | BD79: Бумага для изгот.конвертов 110 г/м (с пов. проклейкой) | BE79: Хомич | BF79: Булавский | BG79: Буйко | BH79: Сандульская | BJ79: Бумага для изгот.конвертов 120 г/м | BK79: Хомич | BL79: Булавский | BM79: Буйко | BN79: Сандульская | BP79: Бумага для изгот.конвертов 120 г/м (с пов. проклейкой) | BQ79: Хомич | BR79: Булавский | BS79: Буйко | BT79: Сандульская
B88: ИТОГО | C88: =SUM(C80:C84) -> 0 | D88: =SUM(D80:D84) -> 0 | E88: =SUM(E80:E84) -> 0 | F88: =SUM(F80:F84) -> 0 | H88: ИТОГО | I88: =SUM(I80:I87) -> 0 | J88: =SUM(J80:J87) -> 0 | K88: =SUM(K80:K87) -> 0 | L88: =SUM(L80:L87) -> 0 | N88: ИТОГО | O88: =SUM(O80:O84) -> 0 | P88: =SUM(P80:P84) -> 0 | Q88: =SUM(Q80:Q84) -> 0 | R88: =SUM(R80:R84) -> 0 | T88: ИТОГО | U88: =SUM(U80:U87) -> 0 | V88: =SUM(V80:V87) -> 0 | W88: =SUM(W80:W87) -> 0 | X88: =SUM(X80:X87) -> 0 | Z88: ИТОГО | AA88: =SUM(AA80:AA87) -> 0 | AB88: =SUM(AB80:AB87) -> 0 | AC88: =SUM(AC80:AC87) -> 0 | AD88: =SUM(AD80:AD87) -> 0 | AF88: ИТОГО | AG88: =SUM(AG80:AG87) -> 0 | AH88: =SUM(AH80:AH87) -> 0 | AI88: =SUM(AI80:AI87) -> 0 | AJ88: =SUM(AJ80:AJ87) -> 0 | AL88: ИТОГО | AM88: =SUM(AM80:AM87) -> 0 | AN88: =SUM(AN80:AN87) -> 0 | AO88: =SUM(AO80:AO87) -> 0 | AP88: =SUM(AP80:AP87) -> 0 | AR88: ИТОГО | AS88: =SUM(AS80:AS87) -> 0 | AT88: =SUM(AT80:AT87) -> 0 | AU88: =SUM(AU80:AU87) -> 0 | AV88: =SUM(AV80:AV87) -> 0 | AX88: ИТОГО | AY88: =SUM(AY80:AY87) -> 0 | AZ88: =SUM(AZ80:AZ87) -> 0 | BA88: =SUM(BA80:BA87) -> 0 | BB88: =SUM(BB80:BB87) -> 0 | BD88: ИТОГО | BE88: =SUM(BE80:BE87) -> 0 | BF88: =SUM(BF80:BF87) -> 0 | BG88: =SUM(BG80:BG87) -> 0 | BH88: =SUM(BH80:BH87) -> 0 | BJ88: ИТОГО | BK88: =SUM(BK80:BK87) -> 0 | BL88: =SUM(BL80:BL87) -> 0 | BM88: =SUM(BM80:BM87) -> 0 | BN88: =SUM(BN80:BN87) -> 0 | BP88: ИТОГО | BQ88: =SUM(BQ80:BQ87) -> 0 | BR88: =SUM(BR80:BR87) -> 0 | BS88: =SUM(BS80:BS87) -> 0
B90: Бумага обложечная, тетрадная м. "А", "К" 80 г/м | C90: Хомич | D90: Булавский | E90: Буйко | F90: Сандульская | H90: Бумага обложечная, тетрадная м. "А" 80 г/м | I90: Хомич | J90: Булавский | K90: Буйко | L90: Сандульская
B99: ИТОГО | C99: =SUM(C91:C98) -> 0 | D99: =SUM(D91:D98) -> 0 | E99: =SUM(E91:E98) -> 0 | F99: =SUM(F91:F98) -> 0 | H99: ИТОГО | I99: =SUM(I91:I98) -> 0 | J99: =SUM(J91:J98) -> 0 | K99: =SUM(K91:K98) -> 0 | L99: =SUM(L91:L98) -> 0
B101: Бумага для упаковки пром. товаров 60 г/м | C101: Хомич | D101: Булавский | E101: Буйко | F101: Сандульская | H101: Бумага для упаковки пром. товаров 80 г/м | I101: Хомич | J101: Булавский | K101: Буйко | L101: Сандульская | N101: Бумага для упаковки пром. товаров 90 г/м | O101: Хомич | P101: Булавский | Q101: Буйко | R101: Сандульская | T101: Бумага для упаковки пром. товаров 110 г/м | U101: Хомич | V101: Булавский | W101: Буйко | X101: Сандульская | Z101: Бумага для упаковки пром. товаров 120 г/м | AA101: Хомич | AB101: Булавский | AC101: Буйко | AD101: Сандульская
B112: ИТОГО | C112: =SUM(C102:C111) -> 0 | D112: =SUM(D102:D111) -> 0 | E112: =SUM(E102:E111) -> 0 | F112: =SUM(F102:F111) -> 0 | H112: ИТОГО | I112: =SUM(I102:I111) -> 0 | J112: =SUM(J102:J111) -> 0 | K112: =SUM(K102:K111) -> 0 | L112: =SUM(L102:L111) -> 0 | N112: ИТОГО | O112: =SUM(O102:O111) -> 0 | P112: =SUM(P102:P111) -> 0 | Q112: =SUM(Q102:Q111) -> 0 | R112: =SUM(R102:R111) -> 0 | T112: ИТОГО | U112: =SUM(U102:U111) -> 0 | V112: =SUM(V102:V111) -> 0 | W112: =SUM(W102:W111) -> 0 | X112: =SUM(X102:X111) -> 0 | Z112: ИТОГО | AA112: =SUM(AA102:AA111) -> 0 | AB112: =SUM(AB102:AB111) -> 0 | AC112: =SUM(AC102:AC111) -> 0 | AD112: =SUM(AD102:AD111) -> 0
B114: Бумага обёрточная м. Д 60г/м | C114: Хомич | D114: Булавский | E114: Буйко | F114: Сандульская | H114: Бумага обёрточная м. Д 80г/м | I114: Хомич | J114: Булавский | K114: Буйко | L114: Сандульская | O114: Хомич | P114: Булавский | Q114: Буйко | R114: Сандульская
H115: 23 | J115: 0.5 | K115: 0.962
B125: ИТОГО | C125: =SUM(C115:C124) -> 0 | D125: =SUM(D115:D124) -> 0 | E125: =SUM(E115:E124) -> 0 | F125: =SUM(F115:F124) -> 0 | H125: ИТОГО | I125: =SUM(O115:O124) -> 0 | J125: =SUM(J115:J124) -> 0.5 | K125: =SUM(K115:K124) -> 0.962 | L125: =SUM(L115:L124) -> 0 | N125: ИТОГО | O125: =SUM(O115:O124) -> 0 | P125: =SUM(P115:P124) -> 0 | Q125: =SUM(Q115:Q124) -> 0 | R125: =SUM(R115:R124) -> 0
B127: Бумага упаковочная с барьерными св-ми 50 г/м | C127: Хомич | D127: Булавский | E127: Буйко | F127: Сандульская | H127: Бумага упаковочная с барьерными св-ми 55 г/м | I127: Хомич | J127: Булавский | K127: Буйко | L127: Сандульская | N127: Бумага упаковочная с барьерными св-ми 60 г/м | O127: Хомич | P127: Булавский | Q127: Буйко | R127: Сандульская | T127: Бумага упаковочная с барьерными св-ми 70 г/м | U127: Хомич | V127: Булавский | W127: Буйко | X127: Сандульская | Z127: Бумага упаковочная с барьерными св-ми 80 г/м | AA127: Хомич | AB127: Булавский | AC127: Буйко | AD127: Сандульская | AF127: Бумага упаковочная с барьерными св-ми 90 г/м | AG127: Хомич | AH127: Булавский | AI127: Буйко | AJ127: Сандульская | AL127: Бумага упаковочная с барьерными св-ми Н/Ф | AM127: Хомич | AN127: Булавский | AO127: Буйко | AP127: Сандульская | AR127: Бумага упаковочная с барьерными св-ми цветная 80 г/м | AS127: Хомич | AT127: Булавский | AU127: Буйко | AV127: Сандульская
B128: 5 | C128: 9.176 | D128: 8.121 | N128: 5 | P128: 1.312 | AL128: 5 | AM128: 0.771 | AN128: 0.442
B129: 6 | E129: 7.805 | F129: 0.492 | N129: 6 | R129: 11.836 | AL129: 6 | AO129: 2.886 | AP129: 0.977
B130: 7 | F130: 3.278
B138: ИТОГО | C138: =SUM(C128:C137) -> 9.176 | D138: =SUM(D128:D137) -> 8.121 | E138: =SUM(E128:E137) -> 7.805 | F138: =SUM(F128:F137) -> 3.77 | H138: ИТОГО | I138: =SUM(I128:I137) -> 0 | J138: =SUM(J128:J137) -> 0 | K138: =SUM(K128:K137) -> 0 | L138: =SUM(L128:L137) -> 0 | N138: ИТОГО | O138: =SUM(O128:O137) -> 0 | P138: =SUM(P128:P137) -> 1.312 | Q138: =SUM(Q128:Q137) -> 0 | R138: =SUM(R128:R137) -> 11.836 | T138: ИТОГО | U138: =SUM(U128:U137) -> 0 | V138: =SUM(V128:V137) -> 0 | W138: =SUM(W128:W137) -> 0 | X138: =SUM(X128:X137) -> 0 | Z138: ИТОГО | AA138: =SUM(AA128:AA137) -> 0 | AB138: =SUM(AB128:AB137) -> 0 | AC138: =SUM(AC128:AC137) -> 0 | AD138: =SUM(AD128:AD137) -> 0 | AF138: ИТОГО | AG138: =SUM(AG128:AG137) -> 0 | AH138: =SUM(AH128:AH137) -> 0 | AI138: =SUM(AI128:AI137) -> 0 | AJ138: =SUM(AJ128:AJ137) -> 0 | AL138: ИТОГО | AM138: =SUM(AM128:AM137) -> 0.771 | AN138: =SUM(AN128:AN137) -> 0.442 | AO138: =SUM(AO128:AO137) -> 2.886 | AP138: =SUM(AP128:AP137) -> 0.977 | AR138: ИТОГО | AS138: =SUM(AS128:AS137) -> 0 | AT138: =SUM(AT128:AT137) -> 0 | AU138: =SUM(AU128:AU137) -> 0 | AV138: =SUM(AV128:AV137) -> 0
B140: Бумага основа для диазобумаги 71 г/м | C140: Хомич | D140: Булавский | E140: Буйко | F140: Сандульская | H140: Бумага диаграммная ДУ-50 "К" 50 г/м | I140: Хомич | J140: Булавский | K140: Буйко | L140: Сандульская | N140: Бумага диаграммная Д-115 "К" 110 г/м | O140: Хомич | P140: Булавский | Q140: Буйко | R140: Сандульская | U140: Хомич | V140: Булавский | W140: Буйко | X140: Сандульская | AA140: Хомич | AB140: Булавский | AC140: Буйко | AD140: Сандульская
B141: 3 | E141: 11.156 | F141: 15.034
B142: 4 | C142: 2.982
B151: ИТОГО | C151: =SUM(C141:C150) -> 2.982 | D151: =SUM(D141:D150) -> 0 | E151: =SUM(E141:E150) -> 11.156 | F151: =SUM(F141:F150) -> 15.034 | H151: ИТОГО | I151: =SUM(I141:I150) -> 0 | J151: =SUM(J141:J150) -> 0 | K151: =SUM(K141:K150) -> 0 | L151: =SUM(L141:L150) -> 0 | N151: ИТОГО | O151: =SUM(O141:O150) -> 0 | P151: =SUM(P141:P150) -> 0 | Q151: =SUM(Q141:Q150) -> 0 | R151: =SUM(R141:R150) -> 0 | T151: ИТОГО | U151: =SUM(U141:U150) -> 0 | V151: =SUM(V141:V150) -> 0 | W151: =SUM(W141:W150) -> 0 | X151: =SUM(X141:X150) -> 0 | Z151: ИТОГО | AA151: =SUM(AA141:AA150) -> 0 | AB151: =SUM(AB141:AB150) -> 0 | AC151: =SUM(AC141:AC150) -> 0 | AD151: =SUM(AD141:AD150) -> 0
B153: Бумага офисная 70 г/м | C153: Хомич | D153: Булавский | E153: Буйко | F153: Сандульская | H153: Бумага офисная 70 г/м ( с пов.проклейкой) | I153: Хомич | J153: Булавский | K153: Буйко | L153: Сандульская | N153: Бумага офисная 80 г/м | O153: Хомич | P153: Булавский | Q153: Буйко | R153: Сандульская | T153: Бумага офисная 80 г/м ( с пов.проклейкой) | U153: Хомич | V153: Булавский | W153: Буйко | X153: Сандульская | AA153: Хомич | AB153: Булавский | AC153: Буйко | AD153: Сандульская | AG153: Хомич | AH153: Булавский | AI153: Буйко | AJ153: Сандульская
N154: 22 | Q154: 6.184 | T154: 22 | W154: 8.718 | X154: 8.899
T155: 23 | X155: 5.871
B160: ИТОГО | C160: =SUM(C154:C159) -> 0 | D160: =SUM(D154:D159) -> 0 | E160: =SUM(E154:E159) -> 0 | F160: =SUM(F154:F159) -> 0 | H160: ИТОГО | I160: =SUM(I154:I159) -> 0 | J160: =SUM(J154:J159) -> 0 | K160: =SUM(K154:K159) -> 0 | L160: =SUM(L154:L159) -> 0 | N160: ИТОГО | O160: =SUM(O154:O159) -> 0 | P160: =SUM(P154:P159) -> 0 | Q160: =SUM(Q154:Q159) -> 6.184 | R160: =SUM(R154:R159) -> 0 | T160: ИТОГО | U160: =SUM(U154:U159) -> 0 | V160: =SUM(V154:V159) -> 0 | W160: =SUM(W154:W159) -> 8.718 | X160: =SUM(X154:X159) -> 14.77 | Z160: ИТОГО | AA160: =SUM(AA154:AA159) -> 0 | AB160: =SUM(AB154:AB159) -> 0 | AC160: =SUM(AC154:AC159) -> 0 | AD160: =SUM(AD154:AD159) -> 0 | AF160: ИТОГО | AG160: =SUM(AG154:AG159) -> 0 | AH160: =SUM(AH154:AH159) -> 0 | AI160: =SUM(AI154:AI159) -> 0 | AJ160: =SUM(AJ154:AJ159) -> 0
B162: Бумага - основа для обоев 80 г/м | C162: Хомич | D162: Булавский | E162: Буйко | F162: Сандульская | H162: Бумага - основа для обоев "К" 80 г/м | I162: Хомич | J162: Булавский | K162: Буйко | L162: Сандульская | O162: Хомич | P162: Булавский | Q162: Буйко | R162: Сандульская | U162: Хомич | V162: Булавский | W162: Буйко | X162: Сандульская | AA162: Хомич | AB162: Булавский | AC162: Буйко | AD162: Сандульская | AG162: Хомич | AH162: Булавский | AI162: Буйко | AJ162: Сандульская
B172: ИТОГО | C172: =SUM(C163:C171) -> 0 | D172: =SUM(D163:D171) -> 0 | E172: =SUM(E163:E171) -> 0 | F172: =SUM(F163:F171) -> 0 | H172: ИТОГО | I172: =SUM(I163:I171) -> 0 | J172: =SUM(J163:J171) -> 0 | K172: =SUM(K163:K171) -> 0 | L172: =SUM(L163:L171) -> 0 | N172: ИТОГО | O172: =SUM(O163:O171) -> 0 | P172: =SUM(P163:P171) -> 0 | Q172: =SUM(Q163:Q171) -> 0 | R172: =SUM(R163:R171) -> 0 | T172: ИТОГО | U172: =SUM(U163:U171) -> 0 | V172: =SUM(V163:V171) -> 0 | W172: =SUM(W163:W171) -> 0 | X172: =SUM(X163:X171) -> 0 | Z172: ИТОГО | AA172: =SUM(AA163:AA171) -> 0 | AB172: =SUM(AB163:AB171) -> 0 | AC172: =SUM(AC163:AC171) -> 0 | AD172: =SUM(AD163:AD171) -> 0 | AF172: ИТОГО | AG172: =SUM(AG163:AG171) -> 0 | AH172: =SUM(AH163:AH171) -> 0 | AI172: =SUM(AI163:AI171) -> 0 | AJ172: =SUM(AJ163:AJ171) -> 0
B173: Документная бумага
B174: Бумага документная Д - 4 60 г/м | C174: Хомич | D174: Булавский | E174: Буйко | F174: Сандульская | H174: Бумага документная Д - 4 80 г/м | I174: Хомич | J174: Булавский | K174: Буйко | L174: Сандульская | N174: Бумага документная Д - 4 120 г/м | O174: Хомич | P174: Булавский | Q174: Буйко | R174: Сандульская | T174: Бумага документная Д- 4 (основа для самоклейки) 60г/м | U174: Хомич | V174: Булавский | W174: Буйко | X174: Сандульская | Z174: Бумага документная Д- 4 (пусковая) | AA174: Хомич | AB174: Булавский | AC174: Буйко | AD174: Сандульская | AG174: Хомич | AH174: Булавский | AI174: Буйко | AJ174: Сандульская
B175: 11 | F175: 5.7408 | H175: 8 | I175: 17.6718 | J175: 13.1873 | N175: 9 | R175: 2.8393
B176: 12 | C176: 13.305 | H176: 9 | I176: 19.408 | J176: 17.0928
A177: БДМ 1 | B177: 14 | F177: 5.0342 | H177: 10 | K177: 17.9775 | L177: 19.5786
H178: 11 | K178: 16.178 | L178: 7.3121
H179: 12 | I179: 2.2481 | J179: 17.2445
H180: 13 | I180: 17.1426 | J180: 6.8578
H181: 14 | L181: 6.417
B189: ИТОГО | C189: =SUM(C175:C188) -> 13.305 | D189: =SUM(D175:D188) -> 0 | E189: =SUM(E175:E188) -> 0 | F189: =SUM(F175:F188) -> 10.775 | H189: ИТОГО | I189: =SUM(I175:I188) -> 56.4705 | J189: =SUM(J175:J188) -> 54.3824 | K189: =SUM(K175:K188) -> 34.1555 | L189: =SUM(L175:L188) -> 33.3077 | N189: ИТОГО | O189: =SUM(O175:O188) -> 0 | P189: =SUM(P175:P188) -> 0 | Q189: =SUM(Q175:Q188) -> 0 | R189: =SUM(R175:R188) -> 2.8393 | T189: ИТОГО | U189: =SUM(U175:U188) -> 0 | V189: =SUM(V175:V188) -> 0 | W189: =SUM(W175:W188) -> 0 | X189: =SUM(X175:X188) -> 0 | Z189: ИТОГО | AA189: =SUM(AA175:AA188) -> 0 | AB189: =SUM(AB175:AB188) -> 0 | AC189: =SUM(AC175:AC188) -> 0 | AD189: =SUM(AD175:AD188) -> 0 | AF189: ИТОГО | AG189: =SUM(AG175:AG188) -> 0 | AH189: =SUM(AH175:AH188) -> 0 | AI189: =SUM(AI175:AI188) -> 0 | AJ189: =SUM(AJ175:AJ188) -> 0
A190: 9
B191: Бумага документная Д-3 с вод. знак (цепочка) № 1182-16 540-80 г/м | C191: Хомич | D191: Булавский | E191: Буйко | F191: Сандульская | H191: Бумага узорная (Y) № 1185 705-90 г/м | I191: Хомич | J191: Булавский | K191: Буйко | L191: Сандульская | N191: Бумага узорная (Y) № 1185 705-120 г/м | O191: Хомич | P191: Булавский | Q191: Буйко | R191: Сандульская | T191: Бумага узорная (соты) № 1184-20 615-80 г/м | U191: Хомич | V191: Булавский | W191: Буйко | X191: Сандульская | Z191: Бумага документная Д-3 с вод. знак (бантик) № 982-09 465-80 г/м | AA191: Хомич | AB191: Булавский | AC191: Буйко | AD191: Сандульская | AF191: Бумага документная Д-3 с вод. знак (ажур) № 1191-01 540-75 г/м | AG191: Хомич | AH191: Булавский | AI191: Буйко | AJ191: Сандульская | AL191: Бумага документная Д-3 с вод. знак (жучок) № 1187-03 740-85 г/м | AM191: Хомич | AN191: Булавский | AO191: Буйко | AP191: Сандульская | AR191: Бумага документная Д-3 с вод. знак (БЧ) № 961-15 600-90 г/м | AS191: Хомич | AT191: Булавский | AU191: Буйко | AV191: Сандульская | AX191: Бумага документная Д-3 с вод. знак (цепочка) № 1186-21 640-90 г/м | AY191: Хомич | AZ191: Булавский | BA191: Буйко | BB191: Сандульская
F192: 0.6744 | I192: 0.3416 | K192: 0.2304 | R192: 0.572 | T192: 2 | X192: 0.6702 | AF192: 19 | AI192: 0.9172 | AJ192: 0.1538 | AL192: 16 | AM192: 0.5454 | AN192: 1.5183 | AO192: 0.5786 | AX192: 18 | BB192: 0.1546
T193: 3 | W193: 1.0454 | X193: 1.3038 | AF193: 20 | AG193: 0.5474 | AH193: 0.7134 | AJ193: 0.7512 | AL193: 17 | AM193: 0.5264 | AN193: 0.8715 | AX193: 19 | BB193: 0.6554
A194: БДМ 2 | T194: 4 | U194: 0.98 | V194: 1.02 | AF194: 21 | AG194: 1.4514 | AH194: 0.7828 | AJ194: 0.252
T195: 5 | U195: 0.8716 | V195: 0.6254 | AF195: 22 | AI195: 0.7234 | AJ195: 1.0098
T196: 6 | V196: 0.247 | W196: 0.78 | X196: 0.2268 | AF196: 23 | AI196: 0.763 | AJ196: 0.7114
T197: 7 | W197: 0.9226 | X197: 0.9148 | AF197: 24 | AH197: 0.6766 | AI197: 0.254
T198: 9 | V198: 0.2947 | W198: 0.2583
B213: ИТОГО | C213: =SUM(C192:C212) -> 0 | D213: =SUM(D192:D212) -> 0 | E213: =SUM(E192:E212) -> 0 | F213: =SUM(F192:F212) -> 0.6744 | H213: ИТОГО | I213: =SUM(I192:I212) -> 0.3416 | J213: =SUM(J192:J212) -> 0 | K213: =SUM(K192:K212) -> 0.2304 | L213: =SUM(L192:L212) -> 0 | N213: ИТОГО | O213: =SUM(O192:O212) -> 0 | P213: =SUM(P192:P212) -> 0 | Q213: =SUM(Q192:Q212) -> 0 | R213: =SUM(R192:R212) -> 0.572 | T213: итого | U213: =SUM(U192:U212) -> 1.8516 | V213: =SUM(V192:V212) -> 2.1871 | W213: =SUM(W192:W212) -> 3.0063 | X213: =SUM(X192:X212) -> 3.1156 | Z213: ИТОГО | AA213: =SUM(AA192:AA212) -> 0 | AB213: =SUM(AB192:AB212) -> 0 | AC213: =SUM(AC192:AC212) -> 0 | AD213: =SUM(AD192:AD212) -> 0 | AF213: ИТОГО | AG213: =SUM(AG192:AG212) -> 1.9988 | AH213: =SUM(AH192:AH212) -> 2.1728 | AI213: =SUM(AI192:AI212) -> 2.6576 | AJ213: =SUM(AJ192:AJ212) -> 2.8782 | AL213: итого | AM213: =SUM(AM192:AM212) -> 1.0718 | AN213: =SUM(AN192:AN212) -> 2.3898 | AO213: =SUM(AO192:AO212) -> 0.5786 | AP213: =SUM(AP192:AP212) -> 0 | AR213: ИТОГО | AS213: =SUM(AS192:AS212) -> 0 | AT213: =SUM(AT192:AT212) -> 0 | AU213: =SUM(AU192:AU212) -> 0 | AV213: =SUM(AV192:AV212) -> 0 | AX213: итого | AY213: =SUM(AY192:AY212) -> 0 | AZ213: =SUM(AZ192:AZ212) -> 0 | BA213: =SUM(BA192:BA212) -> 0 | BB213: =SUM(BB192:BB212) -> 0.81

Sheet Сдельная
B1: Сдельная за ноябрь 2015г БДМ-1
B2: Наименование продукции
C3: Выработка по сменам (тонн) | G3: Итого
C4: Хомич | D4: Булавский | E4: Буйко | F4: Сандульская | G4: (тонн)
B5: ='Бумага по цеху'!B2 -> Бумага для плоттеров 70 г/м | C5: ='Бумага по цеху'!C23 -> 5.573 | D5: ='Бумага по цеху'!D23 -> 2.521 | E5: ='Бумага по цеху'!E23 -> 4.669 | F5: ='Бумага по цеху'!F23 -> 0.872 | G5: =SUM(C5:F5) -> 13.635
B6: ='Бумага по цеху'!H2 -> Бумага для плоттеров 80 г/м | C6: ='Бумага по цеху'!I23 -> 0.26 | D6: ='Бумага по цеху'!J23 -> 0 | E6: ='Бумага по цеху'!K23 -> 0.26 | F6: ='Бумага по цеху'!L23 -> 0.411 | G6: =SUM(C6:F6) -> 0.931
B7: ='Бумага по цеху'!N2 -> Бумага для плоттеров 100 г/м | C7: ='Бумага по цеху'!O23 -> 5 | D7: ='Бумага по цеху'!P23 -> 0 | E7: ='Бумага по цеху'!Q23 -> 0 | F7: ='Бумага по цеху'!R23 -> 0 | G7: 5
B8: ='Бумага по цеху'!T2 -> Бумага для плоттеров 110 г/м | C8: ='Бумага по цеху'!U23 -> 0 | D8: ='Бумага по цеху'!V23 -> 0 | E8: ='Бумага по цеху'!W23 -> 0 | F8: ='Бумага по цеху'!X23 -> 0 | G8: 0
B9: ='Бумага по цеху'!B25 -> Бумага для изгот потр.товаров 60 г/м | C9: ='Бумага по цеху'!C38 -> 10.822 | D9: ='Бумага по цеху'!D38 -> 14.645 | E9: ='Бумага по цеху'!E38 -> 18.766 | F9: ='Бумага по цеху'!F38 -> 16.76 | G9: 60.993
B10: ='Бумага по цеху'!H25 -> Бумага для изгот потр.товаров 70 г/м | C10: ='Бумага по цеху'!I38 -> 0 | D10: ='Бумага по цеху'!J38 -> 0 | E10: ='Бумага по цеху'!K38 -> 0 | F10: ='Бумага по цеху'!L38 -> 0 | G10: 0
B11: ='Бумага по цеху'!N25 -> Бумага для изгот потр.товаров 80 г/м | C11: ='Бумага по цеху'!O38 -> 0 | D11: ='Бумага по цеху'!P38 -> 0 | E11: ='Бумага по цеху'!Q38 -> 0 | F11: ='Бумага по цеху'!R38 -> 0 | G11: 0
B12: ='Бумага по цеху'!B40 -> Бумага писчая 65 г/м | C12: ='Бумага по цеху'!C52 -> 0 | D12: ='Бумага по цеху'!D52 -> 0 | E12: ='Бумага по цеху'!E52 -> 0 | F12: ='Бумага по цеху'!F52 -> 0 | G12: 0
B13: ='Бумага по цеху'!H40 -> Бумага писчая 70 г/м | C13: ='Бумага по цеху'!I52 -> 0 | D13: ='Бумага по цеху'!J52 -> 0 | E13: ='Бумага по цеху'!K52 -> 0 | F13: ='Бумага по цеху'!L52 -> 0 | G13: 0
B14: ='Бумага по цеху'!N40 -> Бумага писчая 65 г/м (с пов. проклейкой) | C14: ='Бумага по цеху'!O52 -> 0 | D14: ='Бумага по цеху'!P52 -> 0 | E14: ='Бумага по цеху'!Q52 -> 0 | F14: ='Бумага по цеху'!R52 -> 0 | G14: 0
B15: ='Бумага по цеху'!T40 -> Бумага писчая 70 г/м (с пов. проклейкой) | C15: ='Бумага по цеху'!U52 -> 0 | D15: ='Бумага по цеху'!V52 -> 0 | E15: ='Бумага по цеху'!W52 -> 0 | F15: ='Бумага по цеху'!X52 -> 0 | G15: 0
B16: ='Бумага по цеху'!B54 -> Бумага для печати 55 г/м | C16: ='Бумага по цеху'!C64 -> 13.936 | D16: ='Бумага по цеху'!D64 -> 18.338 | E16: ='Бумага по цеху'!E64 -> 0 | F16: ='Бумага по цеху'!F64 -> 4.093 | G16: 36.367
B17: ='Бумага по цеху'!H54 -> Бумага для печати 60 г/м | C17: ='Бумага по цеху'!I64 -> 0 | D17: ='Бумага по цеху'!J64 -> 0 | E17: ='Бумага по цеху'!K64 -> 0 | F17: ='Бумага по цеху'!L64 -> 0 | G17: 0
B18: ='Бумага по цеху'!N54 -> Бумага для печати 65 г/м | C18: ='Бумага по цеху'!O64 -> 0 | D18: ='Бумага по цеху'!P64 -> 0 | E18: ='Бумага по цеху'!Q64 -> 0 | F18: ='Бумага по цеху'!R64 -> 0 | G18: 0
B19: ='Бумага по цеху'!T54 -> Бумага для печати 70 г/м | C19: ='Бумага по цеху'!U64 -> 14.529 | D19: ='Бумага по цеху'!V64 -> 0.322 | E19: ='Бумага по цеху'!W64 -> 0 | F19: ='Бумага по цеху'!X64 -> 1.253 | G19: 16.104
B20: ='Бумага по цеху'!Z54 -> Бумага для печати 80 г/м | C20: ='Бумага по цеху'!AA64 -> 0 | D20: ='Бумага по цеху'!AB64 -> 0 | E20: ='Бумага по цеху'!AC64 -> 14.037 | F20: ='Бумага по цеху'!AD64 -> 7.721 | G20: 21.758
B21: ='Бумага по цеху'!AF54 -> Бумага для печати 80 г/м (с пов.проклейкой) | C21: ='Бумага по цеху'!AG64 -> 0 | D21: ='Бумага по цеху'!AH64 -> 0 | E21: ='Бумага по цеху'!AI64 -> 0 | F21: ='Бумага по цеху'!AJ64 -> 0 | G21: 0
B22: ='Бумага по цеху'!AL54 -> Бумага для печати 120 г/м | C22: ='Бумага по цеху'!AM64 -> 0 | D22: ='Бумага по цеху'!AN64 -> 0 | E22: ='Бумага по цеху'!AO64 -> 0 | F22: ='Бумага по цеху'!AP64 -> 0 | G22: 0
B23: ='Бумага по цеху'!B79 -> Бумага для изгот.конвертов 60 г/м | C23: ='Бумага по цеху'!C88 -> 0 | D23: ='Бумага по цеху'!D88 -> 0 | E23: ='Бумага по цеху'!E88 -> 0 | F23: ='Бумага по цеху'!F88 -> 0 | G23: =SUM(C23:F23) -> 0
B24: ='Бумага по цеху'!H79 -> Бумага для изгот.конвертов 70 г/м | C24: ='Бумага по цеху'!I88 -> 0 | D24: ='Бумага по цеху'!J88 -> 0 | E24: ='Бумага по цеху'!K88 -> 0 | F24: ='Бумага по цеху'!L88 -> 0 | G24: 0
B25: ='Бумага по цеху'!N79 -> Бумага для изгот.конвертов 70 г/м (с пов.проклейкой) | C25: ='Бумага по цеху'!O88 -> 0 | D25: ='Бумага по цеху'!P88 -> 0 | E25: ='Бумага по цеху'!Q88 -> 0 | F25: ='Бумага по цеху'!R88 -> 0 | G25: 0
B26: ='Бумага по цеху'!T79 -> Бумага для изгот.конвертов 80 г/м | C26: ='Бумага по цеху'!U88 -> 0 | D26: ='Бумага по цеху'!V88 -> 0 | E26: ='Бумага по цеху'!W88 -> 0 | F26: ='Бумага по цеху'!X88 -> 0 | G26: 0
B27: ='Бумага по цеху'!Z79 -> Бумага для изгот.конвертов 80 г/м (с пов.проклейкой) | C27: ='Бумага по цеху'!AA88 -> 0 | D27: ='Бумага по цеху'!AB88 -> 0 | E27: ='Бумага по цеху'!AC88 -> 0 | F27: ='Бумага по цеху'!AD88 -> 0 | G27: 0
B28: ='Бумага по цеху'!AF79 -> Бумага для изгот.конвертов 90 г/м | C28: ='Бумага по цеху'!AG88 -> 0 | D28: ='Бумага по цеху'!AH88 -> 0 | E28: ='Бумага по цеху'!AI88 -> 0 | F28: ='Бумага по цеху'!AJ88 -> 0 | G28: 0
B29: ='Бумага по цеху'!AL79 -> Бумага для изгот.конвертов 100 г/м | C29: ='Бумага по цеху'!AM88 -> 0 | D29: ='Бумага по цеху'!AN88 -> 0 | E29: ='Бумага по цеху'!AO88 -> 0 | F29: ='Бумага по цеху'!AP88 -> 0 | G29: 0
B30: ='Бумага по цеху'!AR79 -> Бумага для изгот.конвертов 100 г/м (с пов.проклейкой) | C30: ='Бумага по цеху'!AS88 -> 0 | D30: ='Бумага по цеху'!AT88 -> 0 | E30: ='Бумага по цеху'!AU88 -> 0 | F30: ='Бумага по цеху'!AV88 -> 0 | G30: =SUM(C30:F30) -> 0
B31: ='Бумага по цеху'!AX79 -> Бумага для изгот.конвертов 110 г/м | C31: ='Бумага по цеху'!AY88 -> 0 | D31: ='Бумага по цеху'!AZ88 -> 0 | E31: ='Бумага по цеху'!BA88 -> 0 | F31: ='Бумага по цеху'!BB88 -> 0 | G31: =SUM(C31:F31) -> 0
B32: ='Бумага по цеху'!BD79 -> Бумага для изгот.конвертов 110 г/м (с пов. проклейкой) | C32: ='Бумага по цеху'!BE88 -> 0 | D32: ='Бумага по цеху'!BF88 -> 0 | E32: ='Бумага по цеху'!BG88 -> 0 | F32: ='Бумага по цеху'!BH88 -> 0 | G32: =SUM(C32:F32) -> 0
B33: ='Бумага по цеху'!BJ79 -> Бумага для изгот.конвертов 120 г/м | C33: ='Бумага по цеху'!BK88 -> 0 | D33: ='Бумага по цеху'!BL88 -> 0 | E33: ='Бумага по цеху'!BM88 -> 0 | F33: ='Бумага по цеху'!BN88 -> 0 | G33: =SUM(C33:F33) -> 0
B34: ='Бумага по цеху'!BP79 -> Бумага для изгот.конвертов 120 г/м (с пов. проклейкой) | C34: ='Бумага по цеху'!BQ88 -> 0 | D34: ='Бумага по цеху'!BR88 -> 0 | E34: ='Бумага по цеху'!BS88 -> 0 | F34: ='Бумага по цеху'!BT88 -> 0 | G34: =SUM(C34:F34) -> 0
B35: ='Бумага по цеху'!B90 -> Бумага обложечная, тетрадная м. "А", "К" 80 г/м | C35: ='Бумага по цеху'!C99 -> 0 | D35: ='Бумага по цеху'!D99 -> 0 | E35: ='Бумага по цеху'!E99 -> 0 | F35: ='Бумага по цеху'!F99 -> 0 | G35: 0
B36: ='Бумага по цеху'!H90 -> Бумага обложечная, тетрадная м. "А" 80 г/м | C36: ='Бумага по цеху'!I99 -> 0 | D36: ='Бумага по цеху'!J99 -> 0 | E36: ='Бумага по цеху'!K99 -> 0 | F36: ='Бумага по цеху'!L99 -> 0 | G36: 0
B37: ='Бумага по цеху'!B127 -> Бумага упаковочная с барьерными св-ми 50 г/м | C37: ='Бумага по цеху'!C138 -> 9.176 | D37: ='Бумага по цеху'!D138 -> 8.121 | E37: ='Бумага по цеху'!E138 -> 7.805 | F37: ='Бумага по цеху'!F138 -> 3.77 | G37: 28.872
B38: ='Бумага по цеху'!H127 -> Бумага упаковочная с барьерными св-ми 55 г/м | C38: ='Бумага по цеху'!I138 -> 0 | D38: ='Бумага по цеху'!J138 -> 0 | E38: ='Бумага по цеху'!K138 -> 0 | F38: ='Бумага по цеху'!L138 -> 0 | G38: 0
B39: ='Бумага по цеху'!N127 -> Бумага упаковочная с барьерными св-ми 60 г/м | C39: ='Бумага по цеху'!O138 -> 0 | D39: ='Бумага по цеху'!P138 -> 1.312 | E39: ='Бумага по цеху'!Q138 -> 0 | F39: ='Бумага по цеху'!R138 -> 11.836 | G39: 13.148
B40: ='Бумага по цеху'!T127 -> Бумага упаковочная с барьерными св-ми 70 г/м | C40: ='Бумага по цеху'!U138 -> 0 | D40: ='Бумага по цеху'!V138 -> 0 | E40: ='Бумага по цеху'!W138 -> 0 | F40: ='Бумага по цеху'!X138 -> 0 | G40: 0
B41: ='Бумага по цеху'!Z127 -> Бумага упаковочная с барьерными св-ми 80 г/м | C41: ='Бумага по цеху'!AA138 -> 0 | D41: ='Бумага по цеху'!AB138 -> 0 | E41: ='Бумага по цеху'!AC138 -> 0 | F41: ='Бумага по цеху'!AD138 -> 0 | G41: 0
B42: ='Бумага по цеху'!AF127 -> Бумага упаковочная с барьерными св-ми 90 г/м | C42: ='Бумага по цеху'!AG138 -> 0 | D42: ='Бумага по цеху'!AH138 -> 0 | E42: ='Бумага по цеху'!AI138 -> 0 | F42: ='Бумага по цеху'!AJ138 -> 0 | G42: 0
B43: ='Бумага по цеху'!AL127 -> Бумага упаковочная с барьерными св-ми Н/Ф | C43: ='Бумага по цеху'!AM138 -> 0.771 | D43: ='Бумага по цеху'!AN138 -> 0.442 | E43: ='Бумага по цеху'!AO138 -> 2.886 | F43: ='Бумага по цеху'!AP138 -> 0.977 | G43: 5.076
B44: ='Бумага по цеху'!AR127 -> Бумага упаковочная с барьерными св-ми цветная 80 г/м | C44: ='Бумага по цеху'!AS138 -> 0 | D44: ='Бумага по цеху'!AT138 -> 0 | E44: ='Бумага по цеху'!AU138 -> 0 | F44: ='Бумага по цеху'!AV138 -> 0 | G44: 0
B45: ='Бумага по цеху'!B140 -> Бумага основа для диазобумаги 71 г/м | C45: ='Бумага по цеху'!C151 -> 2.982 | D45: ='Бумага по цеху'!D151 -> 0 | E45: ='Бумага по цеху'!E151 -> 11.156 | F45: ='Бумага по цеху'!F151 -> 15.034 | G45: 29.172
B46: ='Бумага по цеху'!H140 -> Бумага диаграммная ДУ-50 "К" 50 г/м | C46: ='Бумага по цеху'!I151 -> 0 | D46: ='Бумага по цеху'!J151 -> 0 | E46: ='Бумага по цеху'!K151 -> 0 | F46: ='Бумага по цеху'!L151 -> 0 | G46: 0
B47: ='Бумага по цеху'!N140 -> Бумага диаграммная Д-115 "К" 110 г/м | C47: ='Бумага по цеху'!O151 -> 0 | D47: ='Бумага по цеху'!P151 -> 0 | E47: ='Бумага по цеху'!Q151 -> 0 | F47: ='Бумага по цеху'!R151 -> 0 | G47: 0
B48: ='Бумага по цеху'!B153 -> Бумага офисная 70 г/м | C48: ='Бумага по цеху'!C160 -> 0 | D48: ='Бумага по цеху'!D160 -> 0 | E48: ='Бумага по цеху'!E160 -> 0 | F48: ='Бумага по цеху'!F160 -> 0 | G48: 0
B49: ='Бумага по цеху'!H153 -> Бумага офисная 70 г/м ( с пов.проклейкой) | C49: ='Бумага по цеху'!I160 -> 0 | D49: ='Бумага по цеху'!J160 -> 0 | E49: ='Бумага по цеху'!K160 -> 0 | F49: ='Бумага по цеху'!L160 -> 0 | G49: =SUM(C49:F49) -> 0
B50: ='Бумага по цеху'!N153 -> Бумага офисная 80 г/м | C50: ='Бумага по цеху'!O160 -> 0 | D50: ='Бумага по цеху'!P160 -> 0 | E50: ='Бумага по цеху'!Q160 -> 6.184 | F50: ='Бумага по цеху'!R160 -> 0 | G50: 6.184
B51: ='Бумага по цеху'!T153 -> Бумага офисная 80 г/м ( с пов.проклейкой) | C51: ='Бумага по цеху'!U160 -> 0 | D51: ='Бумага по цеху'!V160 -> 0 | E51: ='Бумага по цеху'!W160 -> 8.718 | F51: ='Бумага по цеху'!X160 -> 14.77 | G51: 23.488
B52: ='Бумага по цеху'!B66 -> Бумага бланочно-этикеточная 50 г/м | C52: ='Бумага по цеху'!C77 -> 0 | D52: ='Бумага по цеху'!D77 -> 0 | E52: ='Бумага по цеху'!E77 -> 0 | F52: ='Бумага по цеху'!F77 -> 0 | G52: 0
B53: ='Бумага по цеху'!H66 -> Бумага бланочно-этикеточная 55 г/м | C53: ='Бумага по цеху'!I77 -> 0 | D53: ='Бумага по цеху'!J77 -> 0 | E53: ='Бумага по цеху'!K77 -> 4.104 | F53: ='Бумага по цеху'!L77 -> 2.357 | G53: 6.461
B54: ='Бумага по цеху'!N66 -> Бумага бланочно-этикеточная 60 г/м | C54: ='Бумага по цеху'!O77 -> 0 | D54: ='Бумага по цеху'!P77 -> 0 | E54: ='Бумага по цеху'!Q77 -> 0 | F54: ='Бумага по цеху'!R77 -> 0 | G54: =SUM(C54:F54) -> 0
B55: ='Бумага по цеху'!T66 -> Бумага бланочно-этикеточная 70 г/м | C55: ='Бумага по цеху'!U77 -> 0 | D55: ='Бумага по цеху'!V77 -> 0 | E55: ='Бумага по цеху'!W77 -> 0 | F55: ='Бумага по цеху'!X77 -> 0 | G55: =SUM(C55:F55) -> 0
B56: ='Бумага по цеху'!Z66 -> Бумага бланочно-этикеточная 80 г/м | C56: ='Бумага по цеху'!AA77 -> 0 | D56: ='Бумага по цеху'!AB77 -> 0 | E56: ='Бумага по цеху'!AC77 -> 0 | F56: ='Бумага по цеху'!AD77 -> 0 | G56: 0
B57: ='Бумага по цеху'!B101 -> Бумага для упаковки пром. товаров 60 г/м | C57: ='Бумага по цеху'!C112 -> 0 | D57: ='Бумага по цеху'!D112 -> 0 | E57: ='Бумага по цеху'!E112 -> 0 | F57: ='Бумага по цеху'!F112 -> 0 | G57: 0
B58: ='Бумага по цеху'!H101 -> Бумага для упаковки пром. товаров 80 г/м | C58: ='Бумага по цеху'!I112 -> 0 | D58: ='Бумага по цеху'!J112 -> 0 | E58: ='Бумага по цеху'!K112 -> 0 | F58: ='Бумага по цеху'!L112 -> 0 | G58: 0
B59: ='Бумага по цеху'!N101 -> Бумага для упаковки пром. товаров 90 г/м | C59: ='Бумага по цеху'!O112 -> 0 | D59: ='Бумага по цеху'!P112 -> 0 | E59: ='Бумага по цеху'!Q112 -> 0 | F59: ='Бумага по цеху'!R112 -> 0 | G59: 0
B60: ='Бумага по цеху'!T101 -> Бумага для упаковки пром. товаров 110 г/м | C60: ='Бумага по цеху'!O112 -> 0 | D60: ='Бумага по цеху'!P112 -> 0 | E60: ='Бумага по цеху'!Q112 -> 0 | F60: ='Бумага по цеху'!R112 -> 0 | G60: 0
B61: ='Бумага по цеху'!Z101 -> Бумага для упаковки пром. товаров 120 г/м | C61: ='Бумага по цеху'!AA112 -> 0 | D61: ='Бумага по цеху'!AB112 -> 0 | E61: ='Бумага по цеху'!AC112 -> 0 | F61: ='Бумага по цеху'!AD112 -> 0 | G61: 0
B62: ='Бумага по цеху'!B114 -> Бумага обёрточная м. Д 60г/м | C62: ='Бумага по цеху'!C125 -> 0 | D62: ='Бумага по цеху'!D125 -> 0 | E62: ='Бумага по цеху'!E125 -> 0 | F62: ='Бумага по цеху'!F125 -> 0 | G62: 0
B63: ='Бумага по цеху'!H114 -> Бумага обёрточная м. Д 80г/м | C63: ='Бумага по цеху'!I125 -> 0 | D63: ='Бумага по цеху'!J125 -> 0.5 | E63: ='Бумага по цеху'!K125 -> 0.962 | F63: ='Бумага по цеху'!L125 -> 0 | G63: 1.462
B64: ='Бумага по цеху'!B162 -> Бумага - основа для обоев 80 г/м | C64: ='Бумага по цеху'!C172 -> 0 | D64: ='Бумага по цеху'!D172 -> 0 | E64: ='Бумага по цеху'!E172 -> 0 | F64: ='Бумага по цеху'!F172 -> 0 | G64: 0
B65: ='Бумага по цеху'!H162 -> Бумага - основа для обоев "К" 80 г/м | C65: ='Бумага по цеху'!I172 -> 0 | D65: ='Бумага по цеху'!J172 -> 0 | E65: ='Бумага по цеху'!K172 -> 0 | F65: ='Бумага по цеху'!L172 -> 0 | G65: 0
B66: ='Бумага по цеху'!B174 -> Бумага документная Д - 4 60 г/м | C66: ='Бумага по цеху'!C189 -> 13.305 | D66: ='Бумага по цеху'!D189 -> 0 | E66: ='Бумага по цеху'!E189 -> 0 | F66: ='Бумага по цеху'!F189 -> 10.775 | G66: 24.08
B67: ='Бумага по цеху'!H174 -> Бумага документная Д - 4 80 г/м | C67: ='Бумага по цеху'!I189 -> 56.4705 | D67: ='Бумага по цеху'!J189 -> 54.3824 | E67: ='Бумага по цеху'!K189 -> 34.1555 | F67: ='Бумага по цеху'!L189 -> 33.3077 | G67: =SUM(C67:F67) -> 178.3161
B68: ='Бумага по цеху'!N174 -> Бумага документная Д - 4 120 г/м | C68: ='Бумага по цеху'!O189 -> 0 | D68: ='Бумага по цеху'!P189 -> 0 | E68: ='Бумага по цеху'!Q189 -> 0 | F68: ='Бумага по цеху'!R189 -> 2.8393 | G68: =SUM(C68:F68) -> 2.8393
B69: ='Бумага по цеху'!T174 -> Бумага документная Д- 4 (основа для самоклейки) 60г/м | C69: ='Бумага по цеху'!U189 -> 0 | D69: ='Бумага по цеху'!V189 -> 0 | E69: ='Бумага по цеху'!W189 -> 0 | F69: ='Бумага по цеху'!X189 -> 0 | G69: =SUM(C69:F69) -> 0
B70: ='Бумага по цеху'!Z174 -> Бумага документная Д- 4 (пусковая) | C70: ='Бумага по цеху'!AA189 -> 0 | D70: ='Бумага по цеху'!AB189 -> 0 | E70: ='Бумага по цеху'!AC189 -> 0 | F70: ='Бумага по цеху'!AD189 -> 0 | G70: =SUM(C70:F70) -> 0
B71: ИТОГО: | C71: =SUM(C5:C70) -> 132.8245 | D71: =SUM(D5:D70) -> 100.5834 | E71: =SUM(E5:E70) -> 113.7025 | F71: =SUM(F5:F70) -> 126.776 | G71: =SUM(C71:F71) -> 473.8864
B72: Итого массовой | C72: =SUM(C5:C63) -> 63.049 | D72: =SUM(D5:D63) -> 46.201 | E72: =SUM(E5:E63) -> 79.547 | F72: =SUM(F5:F63) -> 79.854 | G72: =SUM(G5:G63) -> 268.651
B73: Итого документной | C73: =SUM(C66:C70) -> 69.7755 | D73: =SUM(D66:D70) -> 54.3824 | E73: =SUM(E66:E70) -> 34.1555 | F73: =SUM(F66:F70) -> 46.922 | G73: =SUM(G66:G70) -> 205.2354
B74: Сдельная за ноябрь 2015г БДМ-2
B75: Наименование продукции
C76: Выработка по сменам (тонн) | G76: Итого
A77: ПЛАН | C77: Хомич | D77: Булавский | E77: Буйко | F77: Сандульская | G77: (тонн)
B78: ='Бумага по цеху'!B191 -> Бумага документная Д-3 с вод. знак (цепочка) № 1182-16 540-80 г/м | C78: ='Бумага по цеху'!C213 -> 0 | D78: ='Бумага по цеху'!D213 -> 0 | E78: ='Бумага по цеху'!E213 -> 0 | F78: ='Бумага по цеху'!F213 -> 0.6744 | G78: =SUM(C78:F78) -> 0.6744
B79: ='Бумага по цеху'!H191 -> Бумага узорная (Y) № 1185 705-90 г/м | C79: ='Бумага по цеху'!I213 -> 0.3416 | D79: ='Бумага по цеху'!J213 -> 0 | E79: ='Бумага по цеху'!K213 -> 0.2304 | F79: ='Бумага по цеху'!L213 -> 0 | G79: =SUM(C79:F79) -> 0.572
B80: ='Бумага по цеху'!N191 -> Бумага узорная (Y) № 1185 705-120 г/м | C80: ='Бумага по цеху'!O213 -> 0 | D80: ='Бумага по цеху'!P213 -> 0 | E80: ='Бумага по цеху'!Q213 -> 0 | F80: ='Бумага по цеху'!R213 -> 0.572 | G80: 0.572
B81: ='Бумага по цеху'!T191 -> Бумага узорная (соты) № 1184-20 615-80 г/м | C81: ='Бумага по цеху'!U213 -> 1.8516 | D81: ='Бумага по цеху'!V213 -> 2.1871 | E81: ='Бумага по цеху'!W213 -> 3.0063 | F81: ='Бумага по цеху'!X213 -> 3.1156 | G81: 10.1606
B82: ='Бумага по цеху'!Z191 -> Бумага документная Д-3 с вод. знак (бантик) № 982-09 465-80 г/м | C82: ='Бумага по цеху'!AA213 -> 0 | D82: ='Бумага по цеху'!AB213 -> 0 | E82: ='Бумага по цеху'!AC213 -> 0 | F82: ='Бумага по цеху'!AD213 -> 0 | G82: 0
B83: ='Бумага по цеху'!AF191 -> Бумага документная Д-3 с вод. знак (ажур) № 1191-01 540-75 г/м | C83: ='Бумага по цеху'!AG213 -> 1.9988 | D83: ='Бумага по цеху'!AH213 -> 2.1728 | E83: ='Бумага по цеху'!AI213 -> 2.6576 | F83: ='Бумага по цеху'!AJ213 -> 2.8782 | G83: 9.7074
B84: ='Бумага по цеху'!AL191 -> Бумага документная Д-3 с вод. знак (жучок) № 1187-03 740-85 г/м | C84: ='Бумага по цеху'!AM213 -> 1.0718 | D84: ='Бумага по цеху'!AN213 -> 2.3898 | E84: ='Бумага по цеху'!AO213 -> 0.5786 | F84: ='Бумага по цеху'!AP213 -> 0 | G84: 4.0402
B85: ='Бумага по цеху'!AR191 -> Бумага документная Д-3 с вод. знак (БЧ) № 961-15 600-90 г/м | C85: ='Бумага по цеху'!AS213 -> 0 | D85: ='Бумага по цеху'!AT213 -> 0 | E85: ='Бумага по цеху'!AU213 -> 0 | F85: ='Бумага по цеху'!AV213 -> 0 | G85: 0
B86: ='Бумага по цеху'!AX191 -> Бумага документная Д-3 с вод. знак (цепочка) № 1186-21 640-90 г/м | C86: ='Бумага по цеху'!AY213 -> 0 | D86: ='Бумага по цеху'!AZ213 -> 0 | E86: ='Бумага по цеху'!BA213 -> 0 | F86: ='Бумага по цеху'!BB213 -> 0.81 | G86: =SUM(C86:F86) -> 0.81
B87: ИТОГО: | C87: =SUM(C78:C86) -> 5.2638 | D87: =SUM(D78:D86) -> 6.7497 | E87: =SUM(E78:E86) -> 6.4729 | F87: =SUM(F78:F86) -> 8.0502 | G87: 26.5366
B88: 24.11.2015г
B89: Лента для плоттеров | G89: ИТОГО
C90: Хомич | D90: Булавский | E90: Буйко | F90: Сандульская | G90: шт.
B91: Ф-1680 мм.- 80 г/м П1 | C91: 10 | G91: =SUM(C91:F91) -> 10
B92: Ф-1000 мм.- 70 г/м П1 | G92: =SUM(C92:F92) -> 0
B93: Ф-1000 мм.- 80 г/м П1 | C93: 10 | G93: =SUM(C93:F93) -> 10
B94: Ф-420 мм.- 80 г/м П1 | C94: 20 | G94: 20
B95: Ф-620 мм.- 80 г/м П1 | C95: 15 | E95: 25 | G95: 40
G96: 0
G97: 0
B98: Ф-1680 мм.- 70 г/м П2 | D98: 74 | E98: 76 | F98: 66 | G98: 216
B99: Ф-1800 мм.- 70 г/м П2 | C99: 100 | G99: 100
B100: Ф-2200 мм.- 70 г/м П2 | C100: 19 | G100: 19
B101: Ф-1680 мм.- 80 г/м П2 | E101: 10 | G101: 10
G102: 0
G103: 0
B104: Ф-1800 мм.- 70 г/м П3 | C104: 63 | F104: 23 | G104: 86
B105: Ф-2000 мм.- 70 г/м П3 | D105: 67 | E105: 20 | G105: 87
B106: Ф-1680 мм.- 70 г/м П3 | C106: 14 | G106: 14
G107: 0
G108: 0
G109: 0
G110: 0
G111: 0
G112: 0
B113: Итого по сменам | C113: =SUM(C91:C112) -> 251 | D113: 141 | E113: 131 | F113: 89 | G113: 612
